[Event "Titled Tuesday Blitz August 1 Early 2023"]
[White "Gombocz, Ferenc Jr."]
[Black "Ordekalog"]
[WhiteFideId "775029"]
[WhiteElo "2399"]
[BlackElo "2525"]
[Result "1/2-1/2"]
[Round "9"]
[TimeControl "180+1"]
[Date "2023.08.01"]
[WhiteClock "0:00:25"]
[BlackClock "0:00:32"]
[Board "106"]

1. d4 {[%clk 0:02:59]}  d5 {[%clk 0:02:58]} 2. Nf3 {[%clk 0:02:59]}  c5 {[%clk 0:02:58]} 3. Bf4 {[%clk 0:02:58]}  cxd4 {[%clk 0:02:58]} 4. Nxd4 {[%clk 0:02:56]}  Nc6 {[%clk 0:02:58]} 5. Nxc6 {[%clk 0:02:55]}  bxc6 {[%clk 0:02:58]} 6. e3 {[%clk 0:02:55]}  Nf6 {[%clk 0:02:53]} 7. c3 {[%clk 0:02:54]}  Qb6 {[%clk 0:02:51]} 8. Qb3 {[%clk 0:02:53]}  e6 {[%clk 0:02:49]} 9. Nd2 {[%clk 0:02:50]}  Be7 {[%clk 0:02:46]} 10. Bd3 {[%clk 0:02:48]}  Nd7 {[%clk 0:02:42]} 11. O-O {[%clk 0:02:44]}  e5 {[%clk 0:02:41]} 12. Bg3 {[%clk 0:02:45]}  e4 {[%clk 0:02:41]} 13. Be2 {[%clk 0:02:44]}  Nc5 {[%clk 0:02:40]} 14. Qxb6 {[%clk 0:02:43]}  axb6 {[%clk 0:02:41]} 15. c4 {[%clk 0:02:41]}  Bf6 {[%clk 0:02:38]} 16. cxd5 {[%clk 0:02:34]}  cxd5 {[%clk 0:02:23]} 17. Bb5+ {[%clk 0:02:33]}  Ke7 {[%clk 0:02:22]} 18. a4 {[%clk 0:02:29]}  Bxb2 {[%clk 0:02:20]} 19. Rab1 {[%clk 0:02:29]}  Bc3 {[%clk 0:02:20]} 20. Nb3 {[%clk 0:02:28]}  Nxa4 {[%clk 0:02:10]} 21. Rfc1 {[%clk 0:02:28]}  Bb4 {[%clk 0:01:16]} 22. Rc7+ {[%clk 0:02:07]}  Kf6 {[%clk 0:01:15]} 23. Ra1 {[%clk 0:02:04]}  Ba6 {[%clk 0:00:53]} 24. Bxa4 {[%clk 0:01:45]}  b5 {[%clk 0:00:52]} 25. Rc6+ {[%clk 0:01:44]}  Ke7 {[%clk 0:00:52]} 26. Rc7+ {[%clk 0:00:34]}  Kf6 {[%clk 0:00:50]} 27. Rc6+ {[%clk 0:00:25]}  Ke7 {[%clk 0:00:49]} 28. Rc7+ {[%clk 0:00:25]}  Kf6 {[%clk 0:00:32]} 1/2-1/2


[Site "https://www.chess.com"]

[Event "Titled Tuesday Blitz August 1 Early 2023"]
[White "Jaskolka, Tomasz"]
[Black "Eggleston, Thomas A"]
[WhiteFideId "1170791"]
[BlackFideId "412139"]
[WhiteElo "2524"]
[BlackElo "2390"]
[Result "1-0"]
[Round "9"]
[TimeControl "180+1"]
[Date "2023.08.01"]
[WhiteClock "0:00:08"]
[BlackClock "0:00:03"]
[Board "107"]

1. e4 {[%clk 0:03:00]}  e6 {[%clk 0:03:00]} 2. Nf3 {[%clk 0:02:56]}  d5 {[%clk 0:03:00]} 3. e5 {[%clk 0:02:56]}  c5 {[%clk 0:02:59]} 4. b4 {[%clk 0:02:57]}  d4 {[%clk 0:03:00]} 5. bxc5 {[%clk 0:02:46]}  Bxc5 {[%clk 0:02:57]} 6. d3 {[%clk 0:02:46]}  Nc6 {[%clk 0:02:55]} 7. Be2 {[%clk 0:02:45]}  Nge7 {[%clk 0:02:52]} 8. Nbd2 {[%clk 0:02:45]}  Ng6 {[%clk 0:02:45]} 9. Nc4 {[%clk 0:02:17]}  b5 {[%clk 0:02:34]} 10. Nd6+ {[%clk 0:02:15]}  Bxd6 {[%clk 0:02:34]} 11. exd6 {[%clk 0:02:16]}  Qxd6 {[%clk 0:02:34]} 12. a4 {[%clk 0:02:17]}  b4 {[%clk 0:02:33]} 13. O-O {[%clk 0:02:15]}  O-O {[%clk 0:02:32]} 14. Ng5 {[%clk 0:02:10]}  f5 {[%clk 0:02:23]} 15. Bf3 {[%clk 0:02:01]}  h6 {[%clk 0:02:16]} 16. Nh3 {[%clk 0:01:56]}  Rb8 {[%clk 0:02:14]} 17. Bh5 {[%clk 0:01:50]}  e5 {[%clk 0:02:07]} 18. Bd2 {[%clk 0:01:37]}  Bb7 {[%clk 0:02:04]} 19. Re1 {[%clk 0:01:35]}  a5 {[%clk 0:02:01]} 20. f4 {[%clk 0:01:27]}  Nxf4 {[%clk 0:01:51]} 21. Nxf4 {[%clk 0:01:24]}  exf4 {[%clk 0:01:51]} 22. Qe2 {[%clk 0:01:13]}  g6 {[%clk 0:01:35]} 23. Bf3 {[%clk 0:01:08]}  g5 {[%clk 0:01:34]} 24. Qe6+ {[%clk 0:01:03]}  Qxe6 {[%clk 0:01:34]} 25. Rxe6 {[%clk 0:01:04]}  Rbc8 {[%clk 0:01:01]} 26. Rxh6 {[%clk 0:00:57]}  Kg7 {[%clk 0:01:00]} 27. Rh5 {[%clk 0:00:51]}  Kg6 {[%clk 0:00:55]} 28. h4 {[%clk 0:00:51]}  g4 {[%clk 0:00:49]} 29. Rg5+ {[%clk 0:00:51]}  Kf6 {[%clk 0:00:48]} 30. Bd5 {[%clk 0:00:46]}  Nd8 {[%clk 0:00:40]} 31. Bxb7 {[%clk 0:00:39]}  Nxb7 {[%clk 0:00:40]} 32. Bxf4 {[%clk 0:00:40]}  Rxc2 {[%clk 0:00:39]} 33. Re1 {[%clk 0:00:39]}  Rc5 {[%clk 0:00:33]} 34. h5 {[%clk 0:00:39]}  b3 {[%clk 0:00:31]} 35. Rg6+ {[%clk 0:00:38]}  Kf7 {[%clk 0:00:30]} 36. Rb6 {[%clk 0:00:39]}  Nd8 {[%clk 0:00:24]} 37. Bd6 {[%clk 0:00:27]}  Rc3 {[%clk 0:00:15]} 38. Bxf8 {[%clk 0:00:28]}  Kxf8 {[%clk 0:00:15]} 39. Rb8 {[%clk 0:00:28]}  Kf7 {[%clk 0:00:12]} 40. Rxd8 {[%clk 0:00:28]}  b2 {[%clk 0:00:12]} 41. Rb8 {[%clk 0:00:27]}  Rc1 {[%clk 0:00:12]} 42. Kf1 {[%clk 0:00:18]}  Rc2 {[%clk 0:00:09]} 43. Rb7+ {[%clk 0:00:10]}  Kf6 {[%clk 0:00:06]} 44. h6 {[%clk 0:00:11]}  f4 {[%clk 0:00:05]} 45. h7 {[%clk 0:00:11]}  f3 {[%clk 0:00:03]} 46. h8=Q+ {[%clk 0:00:11]}  Kf5 {[%clk 0:00:04]} 47. Qh5+ {[%clk 0:00:10]}  Kf4 {[%clk 0:00:04]} 48. Qh2+ {[%clk 0:00:09]}  Kf5 {[%clk 0:00:04]} 49. Qh7+ {[%clk 0:00:09]}  Kf4 {[%clk 0:00:04]} 50. Qf7+ {[%clk 0:00:07]}  Kg5 {[%clk 0:00:04]} 51. Rb5+ {[%clk 0:00:07]}  Kh4 {[%clk 0:00:03]} 52. Qh5+ {[%clk 0:00:07]}  Kg3 {[%clk 0:00:04]} 53. Qe5+ {[%clk 0:00:07]}  Kh4 {[%clk 0:00:03]} 54. Qh2# {[%clk 0:00:08]} 1-0


[Site "https://www.chess.com"]

[Event "Titled Tuesday Blitz August 1 Early 2023"]
[White "Ljukin, Sergei"]
[Black "Martin, Lewis"]
[WhiteFideId "14102200"]
[BlackFideId "410551"]
[WhiteElo "2500"]
[BlackElo "2299"]
[Result "0-1"]
[Round "9"]
[TimeControl "180+1"]
[Date "2023.08.01"]
[WhiteClock "0:00:00"]
[BlackClock "0:00:33"]
[Board "109"]

1. e4 {[%clk 0:02:45]}  c5 {[%clk 0:03:00]} 2. Nf3 {[%clk 0:02:45]}  d6 {[%clk 0:03:00]} 3. d4 {[%clk 0:02:44]}  cxd4 {[%clk 0:03:00]} 4. Nxd4 {[%clk 0:02:45]}  Nf6 {[%clk 0:03:01]} 5. Nc3 {[%clk 0:02:45]}  a6 {[%clk 0:03:01]} 6. Bg5 {[%clk 0:02:46]}  e6 {[%clk 0:03:01]} 7. f4 {[%clk 0:02:46]}  b5 {[%clk 0:03:01]} 8. e5 {[%clk 0:02:46]}  dxe5 {[%clk 0:03:01]} 9. fxe5 {[%clk 0:02:46]}  Qc7 {[%clk 0:03:01]} 10. Qe2 {[%clk 0:02:46]}  Nfd7 {[%clk 0:03:01]} 11. O-O-O {[%clk 0:02:45]}  Nc6 {[%clk 0:03:01]} 12. Nxc6 {[%clk 0:02:42]}  Qxc6 {[%clk 0:03:02]} 13. Qh5 {[%clk 0:02:41]}  Bb7 {[%clk 0:02:50]} 14. Be2 {[%clk 0:01:54]}  Nxe5 {[%clk 0:02:46]} 15. Bf4 {[%clk 0:01:23]}  Ng6 {[%clk 0:02:40]} 16. Bg3 {[%clk 0:01:16]}  Be7 {[%clk 0:02:10]} 17. Nxb5 {[%clk 0:01:06]}  O-O {[%clk 0:02:01]} 18. Nd6 {[%clk 0:00:53]}  Qxg2 {[%clk 0:01:44]} 19. Nxb7 {[%clk 0:00:46]}  Qxb7 {[%clk 0:01:42]} 20. Bf3 {[%clk 0:00:47]}  Qb6 {[%clk 0:01:28]} 21. Bxa8 {[%clk 0:00:46]}  Rxa8 {[%clk 0:01:28]} 22. Rd3 {[%clk 0:00:43]}  Bf6 {[%clk 0:01:26]} 23. Rb3 {[%clk 0:00:42]}  Qc6 {[%clk 0:01:24]} 24. Rf1 {[%clk 0:00:29]}  Rc8 {[%clk 0:01:24]} 25. Qe2 {[%clk 0:00:28]}  Ne7 {[%clk 0:01:10]} 26. Kb1 {[%clk 0:00:19]}  Nd5 {[%clk 0:01:05]} 27. a3 {[%clk 0:00:18]}  a5 {[%clk 0:01:00]} 28. Ka2 {[%clk 0:00:08]}  h6 {[%clk 0:00:54]} 29. c4 {[%clk 0:00:07]}  Qxc4 {[%clk 0:00:53]} 30. Qxc4 {[%clk 0:00:07]}  Rxc4 {[%clk 0:00:53]} 31. Rb5 {[%clk 0:00:06]}  Rc2 {[%clk 0:00:49]} 32. Rf2 {[%clk 0:00:06]}  Nc3+ {[%clk 0:00:49]} 33. Kb3 {[%clk 0:00:05]}  Rxb2+ {[%clk 0:00:32]} 34. Rxb2 {[%clk 0:00:03]}  Nxb5 {[%clk 0:00:33]} 35. Rc2 {[%clk 0:00:00]}  Nd4+ {[%clk 0:00:33]} 0-1


[Site "https://www.chess.com"]

[Event "Titled Tuesday Blitz August 1 Early 2023"]
[White "Kaminski, Victor"]
[Black "Papayan, Oleg"]
[WhiteFideId "1131630"]
[BlackFideId "4193911"]
[WhiteElo "2355"]
[BlackElo "2497"]
[Result "0-1"]
[Round "9"]
[TimeControl "180+1"]
[Date "2023.08.01"]
[WhiteClock "0:00:00"]
[BlackClock "0:00:08"]
[Board "110"]

1. e4 {[%clk 0:02:58]}  d5 {[%clk 0:03:00]} 2. exd5 {[%clk 0:02:58]}  Qxd5 {[%clk 0:03:01]} 3. Nc3 {[%clk 0:02:58]}  Qa5 {[%clk 0:03:01]} 4. b4 {[%clk 0:02:57]}  Qxb4 {[%clk 0:03:00]} 5. Rb1 {[%clk 0:02:56]}  Qd6 {[%clk 0:03:00]} 6. Nf3 {[%clk 0:02:54]}  c6 {[%clk 0:02:57]} 7. Bc4 {[%clk 0:02:51]}  g6 {[%clk 0:02:52]} 8. O-O {[%clk 0:02:47]}  Bg7 {[%clk 0:02:52]} 9. d4 {[%clk 0:02:47]}  Nf6 {[%clk 0:02:43]} 10. Ne5 {[%clk 0:02:47]}  O-O {[%clk 0:02:43]} 11. Bf4 {[%clk 0:02:47]}  Qd8 {[%clk 0:02:43]} 12. Qd2 {[%clk 0:02:31]}  Nbd7 {[%clk 0:02:34]} 13. Rfd1 {[%clk 0:02:16]}  Nb6 {[%clk 0:02:29]} 14. Bb3 {[%clk 0:02:12]}  Nfd5 {[%clk 0:02:09]} 15. Nxd5 {[%clk 0:02:08]}  Nxd5 {[%clk 0:02:10]} 16. Bh6 {[%clk 0:02:07]}  a5 {[%clk 0:01:41]} 17. Bxg7 {[%clk 0:02:00]}  Kxg7 {[%clk 0:01:42]} 18. c4 {[%clk 0:01:34]}  Nf6 {[%clk 0:01:36]} 19. Bc2 {[%clk 0:01:25]}  a4 {[%clk 0:01:25]} 20. Qb4 {[%clk 0:01:10]}  Qd6 {[%clk 0:00:54]} 21. c5 {[%clk 0:01:01]}  Qd5 {[%clk 0:00:51]} 22. Nc4 {[%clk 0:00:52]}  Qg5 {[%clk 0:00:46]} 23. Rd3 {[%clk 0:00:40]}  Nd5 {[%clk 0:00:46]} 24. Qe1 {[%clk 0:00:29]}  Bf5 {[%clk 0:00:46]} 25. Rg3 {[%clk 0:00:29]}  Qh5 {[%clk 0:00:46]} 26. Bd1 {[%clk 0:00:27]}  Qh4 {[%clk 0:00:45]} 27. Rxb7 {[%clk 0:00:14]}  Qxd4 {[%clk 0:00:42]} 28. Qe5+ {[%clk 0:00:08]}  Qxe5 {[%clk 0:00:41]} 29. Nxe5 {[%clk 0:00:09]}  Rfb8 {[%clk 0:00:32]} 30. Rxb8 {[%clk 0:00:08]}  Rxb8 {[%clk 0:00:33]} 31. Be2 {[%clk 0:00:02]}  Rb1+ {[%clk 0:00:33]} 32. Bf1 {[%clk 0:00:03]}  Ra1 {[%clk 0:00:34]} 33. Ra3 {[%clk 0:00:02]}  Nf4 {[%clk 0:00:27]} 34. g4 {[%clk 0:00:02]}  Be4 {[%clk 0:00:14]} 35. f3 {[%clk 0:00:02]}  Bd5 {[%clk 0:00:14]} 36. Rxa4 {[%clk 0:00:03]}  Ne6 {[%clk 0:00:11]} 37. Nd3 {[%clk 0:00:02]}  Bxf3 {[%clk 0:00:10]} 38. Kf2 {[%clk 0:00:03]}  Bd5 {[%clk 0:00:09]} 39. Ra5 {[%clk 0:00:02]}  Rxa2+ {[%clk 0:00:08]} 40. Ke3 {[%clk 0:00:00]}  Rxa5 {[%clk 0:00:08]} 0-1


[Site "https://www.chess.com"]

[Event "Titled Tuesday Blitz August 1 Early 2023"]
[White "Atakhan, Abtin"]
[Black "Bogaudinov, Rushan"]
[WhiteFideId "22502203"]
[BlackFideId "4129288"]
[WhiteElo "2759"]
[BlackElo "2428"]
[Result "1-0"]
[Round "9"]
[TimeControl "180+1"]
[Date "2023.08.01"]
[WhiteClock "0:00:57"]
[BlackClock "0:00:08"]
[Board "112"]

1. Nf3 {[%clk 0:03:00]}  d5 {[%clk 0:02:40]} 2. g3 {[%clk 0:03:01]}  g6 {[%clk 0:02:37]} 3. Bg2 {[%clk 0:02:58]}  Bg7 {[%clk 0:02:36]} 4. d4 {[%clk 0:02:57]}  Nf6 {[%clk 0:02:37]} 5. O-O {[%clk 0:02:57]}  O-O {[%clk 0:02:37]} 6. c4 {[%clk 0:02:57]}  c6 {[%clk 0:02:37]} 7. Qb3 {[%clk 0:02:58]}  Qb6 {[%clk 0:02:36]} 8. Nc3 {[%clk 0:02:55]}  dxc4 {[%clk 0:02:33]} 9. Qxc4 {[%clk 0:02:55]}  Be6 {[%clk 0:02:32]} 10. Qa4 {[%clk 0:02:49]}  Qa6 {[%clk 0:02:20]} 11. Qc2 {[%clk 0:02:47]}  Nbd7 {[%clk 0:02:14]} 12. e4 {[%clk 0:02:47]}  Bg4 {[%clk 0:02:00]} 13. h3 {[%clk 0:02:38]}  Bxf3 {[%clk 0:02:00]} 14. Bxf3 {[%clk 0:02:39]}  e6 {[%clk 0:01:55]} 15. Be3 {[%clk 0:02:37]}  Rfd8 {[%clk 0:01:54]} 16. b4 {[%clk 0:02:32]}  Qa3 {[%clk 0:01:40]} 17. Rab1 {[%clk 0:02:29]}  Nb6 {[%clk 0:01:13]} 18. Be2 {[%clk 0:02:26]}  a5 {[%clk 0:00:54]} 19. Rb3 {[%clk 0:02:26]}  axb4 {[%clk 0:00:54]} 20. Rxa3 {[%clk 0:02:26]}  Rxa3 {[%clk 0:00:53]} 21. Nb1 {[%clk 0:02:26]}  Ra5 {[%clk 0:00:51]} 22. d5 {[%clk 0:02:24]}  Nbd7 {[%clk 0:00:49]} 23. dxc6 {[%clk 0:02:23]}  bxc6 {[%clk 0:00:49]} 24. Qxc6 {[%clk 0:02:09]}  Rxa2 {[%clk 0:00:46]} 25. Nd2 {[%clk 0:01:53]}  Nf8 {[%clk 0:00:34]} 26. Qc1 {[%clk 0:01:39]}  b3 {[%clk 0:00:32]} 27. Bd1 {[%clk 0:01:30]}  b2 {[%clk 0:00:29]} 28. Qc4 {[%clk 0:01:19]}  Ra1 {[%clk 0:00:26]} 29. Bc2 {[%clk 0:01:14]}  Rc1 {[%clk 0:00:20]} 30. Qb3 {[%clk 0:01:11]}  N6d7 {[%clk 0:00:16]} 31. Nc4 {[%clk 0:01:05]}  Rc8 {[%clk 0:00:15]} 32. Bxc1 {[%clk 0:01:04]}  bxc1=Q {[%clk 0:00:15]} 33. Rxc1 {[%clk 0:01:05]}  Nc5 {[%clk 0:00:15]} 34. Qa2 {[%clk 0:01:04]}  Nfd7 {[%clk 0:00:14]} 35. Nd6 {[%clk 0:01:02]}  Rc6 {[%clk 0:00:13]} 36. Qa8+ {[%clk 0:00:57]}  Bf8 {[%clk 0:00:08]} 37. Qxc6 {[%clk 0:00:57]} 1-0


[Site "https://www.chess.com"]

[Event "Titled Tuesday Blitz August 1 Early 2023"]
[White "Bouget, Alexandre"]
[Black "Voege, Tobias"]
[WhiteFideId "681318"]
[BlackFideId "1270513"]
[WhiteElo "2409"]
[BlackElo "2635"]
[Result "1-0"]
[Round "9"]
[TimeControl "180+1"]
[Date "2023.08.01"]
[WhiteClock "0:00:41"]
[BlackClock "0:00:17"]
[Board "114"]

1. d4 {[%clk 0:02:43]}  Nf6 {[%clk 0:02:58]} 2. c4 {[%clk 0:02:43]}  g6 {[%clk 0:02:59]} 3. Nc3 {[%clk 0:02:43]}  Bg7 {[%clk 0:02:59]} 4. e4 {[%clk 0:02:42]}  O-O {[%clk 0:03:00]} 5. Be2 {[%clk 0:02:43]}  d6 {[%clk 0:03:00]} 6. Nf3 {[%clk 0:02:44]}  e5 {[%clk 0:03:00]} 7. O-O {[%clk 0:02:44]}  Nc6 {[%clk 0:03:01]} 8. d5 {[%clk 0:02:44]}  Ne7 {[%clk 0:03:00]} 9. Ne1 {[%clk 0:02:45]}  a5 {[%clk 0:02:58]} 10. Be3 {[%clk 0:02:46]}  Nd7 {[%clk 0:02:55]} 11. f3 {[%clk 0:02:46]}  Nc5 {[%clk 0:02:55]} 12. Nd3 {[%clk 0:02:43]}  Nxd3 {[%clk 0:02:51]} 13. Bxd3 {[%clk 0:02:44]}  f5 {[%clk 0:02:52]} 14. c5 {[%clk 0:02:42]}  f4 {[%clk 0:02:50]} 15. Bf2 {[%clk 0:02:41]}  g5 {[%clk 0:02:47]} 16. Rc1 {[%clk 0:02:41]}  h5 {[%clk 0:02:45]} 17. cxd6 {[%clk 0:02:41]}  cxd6 {[%clk 0:02:45]} 18. Nb5 {[%clk 0:02:42]}  g4 {[%clk 0:02:43]} 19. Kh1 {[%clk 0:02:40]}  Ng6 {[%clk 0:02:40]} 20. Nc7 {[%clk 0:02:37]}  Rb8 {[%clk 0:02:28]} 21. Ne6 {[%clk 0:02:12]}  Bxe6 {[%clk 0:02:25]} 22. dxe6 {[%clk 0:02:13]}  g3 {[%clk 0:02:03]} 23. Bc4 {[%clk 0:02:14]}  Qe7 {[%clk 0:01:41]} 24. Bb6 {[%clk 0:02:06]}  gxh2 {[%clk 0:01:29]} 25. Bd5 {[%clk 0:01:58]}  Rbc8 {[%clk 0:01:27]} 26. Qb3 {[%clk 0:01:48]}  Kh7 {[%clk 0:01:22]} 27. Bxa5 {[%clk 0:01:45]}  Nh4 {[%clk 0:01:07]} 28. Rxc8 {[%clk 0:01:40]}  Rxc8 {[%clk 0:01:08]} 29. Be1 {[%clk 0:01:31]}  Rc1 {[%clk 0:00:52]} 30. Qb5 {[%clk 0:01:17]}  Nxg2 {[%clk 0:00:21]} 31. Kxg2 {[%clk 0:01:03]}  Qg5+ {[%clk 0:00:20]} 32. Kxh2 {[%clk 0:01:02]}  Rc2+ {[%clk 0:00:20]} 33. Rf2 {[%clk 0:00:42]}  Qg4 {[%clk 0:00:17]} 34. fxg4 {[%clk 0:00:41]} 1-0


[Site "https://www.chess.com"]

[Event "Titled Tuesday Blitz August 1 Early 2023"]
[White "Kvaloy, Aksel Bu"]
[Black "Rosenberg, Evan S"]
[WhiteFideId "1528815"]
[BlackFideId "2019299"]
[WhiteElo "2613"]
[BlackElo "2398"]
[Result "1-0"]
[Round "9"]
[TimeControl "180+1"]
[Date "2023.08.01"]
[WhiteClock "0:01:28"]
[BlackClock "0:00:06"]
[Board "115"]

1. e4 {[%clk 0:03:00]}  c5 {[%clk 0:02:53]} 2. Nf3 {[%clk 0:02:59]}  g6 {[%clk 0:02:53]} 3. d4 {[%clk 0:02:57]}  cxd4 {[%clk 0:02:53]} 4. Qxd4 {[%clk 0:02:58]}  Nf6 {[%clk 0:02:53]} 5. e5 {[%clk 0:02:58]}  Nc6 {[%clk 0:02:53]} 6. Qa4 {[%clk 0:02:59]}  Nd5 {[%clk 0:02:51]} 7. Qe4 {[%clk 0:02:59]}  Nc7 {[%clk 0:02:47]} 8. Nc3 {[%clk 0:02:59]}  Bg7 {[%clk 0:02:42]} 9. Bf4 {[%clk 0:02:58]}  O-O {[%clk 0:02:40]} 10. O-O-O {[%clk 0:02:58]}  a6 {[%clk 0:02:30]} 11. h4 {[%clk 0:02:47]}  h5 {[%clk 0:02:07]} 12. g4 {[%clk 0:02:38]}  hxg4 {[%clk 0:02:01]} 13. Ng5 {[%clk 0:02:34]}  d6 {[%clk 0:00:43]} 14. exd6 {[%clk 0:02:15]}  exd6 {[%clk 0:00:43]} 15. Bxd6 {[%clk 0:02:14]}  Re8 {[%clk 0:00:40]} 16. Qf4 {[%clk 0:01:59]}  Ne6 {[%clk 0:00:07]} 17. Qxf7+ {[%clk 0:01:55]}  Kh8 {[%clk 0:00:07]} 18. Qxg6 {[%clk 0:01:49]}  Nxg5 {[%clk 0:00:05]} 19. hxg5+ {[%clk 0:01:28]}  Kg8 {[%clk 0:00:06]} 1-0


[Site "https://www.chess.com"]

[Event "Titled Tuesday Blitz August 1 Early 2023"]
[White "Llanos, Guillermo"]
[Black "Vaibhav Jayant Raut"]
[WhiteFideId "100358"]
[BlackFideId "5089034"]
[WhiteElo "2385"]
[BlackElo "2579"]
[Result "0-1"]
[Round "9"]
[TimeControl "180+1"]
[Date "2023.08.01"]
[WhiteClock "0:00:00"]
[BlackClock "0:01:52"]
[Board "117"]

1. b3 {[%clk 0:03:00]}  Nf6 {[%clk 0:02:59]} 2. Bb2 {[%clk 0:02:59]}  d5 {[%clk 0:03:00]} 3. e3 {[%clk 0:02:58]}  Nc6 {[%clk 0:03:00]} 4. Nf3 {[%clk 0:02:57]}  Bg4 {[%clk 0:03:00]} 5. d4 {[%clk 0:02:55]}  e6 {[%clk 0:02:58]} 6. h3 {[%clk 0:02:54]}  Bh5 {[%clk 0:02:58]} 7. Bb5 {[%clk 0:02:48]}  a6 {[%clk 0:02:53]} 8. Bxc6+ {[%clk 0:02:47]}  bxc6 {[%clk 0:02:54]} 9. g4 {[%clk 0:02:44]}  Bg6 {[%clk 0:02:53]} 10. Ne5 {[%clk 0:02:44]}  c5 {[%clk 0:02:52]} 11. h4 {[%clk 0:02:31]}  h5 {[%clk 0:02:49]} 12. Nxg6 {[%clk 0:02:26]}  fxg6 {[%clk 0:02:50]} 13. Qd3 {[%clk 0:02:06]}  Kf7 {[%clk 0:02:46]} 14. g5 {[%clk 0:02:00]}  Nd7 {[%clk 0:02:40]} 15. Rh3 {[%clk 0:01:44]}  Qe8 {[%clk 0:02:35]} 16. e4 {[%clk 0:01:29]}  cxd4 {[%clk 0:02:31]} 17. Bxd4 {[%clk 0:01:23]}  Kg8 {[%clk 0:02:23]} 18. Nd2 {[%clk 0:01:21]}  Ba3 {[%clk 0:02:20]} 19. Re3 {[%clk 0:01:10]}  Qf7 {[%clk 0:02:14]} 20. exd5 {[%clk 0:01:07]}  exd5 {[%clk 0:02:15]} 21. Rb1 {[%clk 0:00:30]}  c5 {[%clk 0:02:10]} 22. Bb2 {[%clk 0:00:29]}  Bxb2 {[%clk 0:02:10]} 23. Rxb2 {[%clk 0:00:28]}  Kh7 {[%clk 0:02:11]} 24. c4 {[%clk 0:00:24]}  d4 {[%clk 0:02:10]} 25. Re2 {[%clk 0:00:21]}  Rhe8 {[%clk 0:02:09]} 26. Kd1 {[%clk 0:00:20]}  Rxe2 {[%clk 0:02:07]} 27. Qxe2 {[%clk 0:00:19]}  Re8 {[%clk 0:02:08]} 28. Ne4 {[%clk 0:00:19]}  Qf4 {[%clk 0:02:05]} 29. f3 {[%clk 0:00:18]}  Qxh4 {[%clk 0:02:05]} 30. Rd2 {[%clk 0:00:18]}  Qf4 {[%clk 0:01:59]} 31. Kc2 {[%clk 0:00:17]}  Ne5 {[%clk 0:01:59]} 32. Qe1 {[%clk 0:00:11]}  Nxf3 {[%clk 0:01:53]} 33. Nf6+ {[%clk 0:00:09]}  gxf6 {[%clk 0:01:54]} 34. Qxe8 {[%clk 0:00:08]}  Qxd2+ {[%clk 0:01:54]} 35. Kb1 {[%clk 0:00:08]}  Qe1+ {[%clk 0:01:54]} 36. Kb2 {[%clk 0:00:00]}  Qxe8 {[%clk 0:01:52]} 0-1


[Site "https://www.chess.com"]

[Event "Titled Tuesday Blitz August 1 Early 2023"]
[White "Nosacheva, Mariya"]
[Black "Shukhman, Anna"]
[WhiteFideId "34111422"]
[BlackFideId "54180058"]
[WhiteElo "2379"]
[BlackElo "2578"]
[Result "0-1"]
[Round "9"]
[TimeControl "180+1"]
[Date "2023.08.01"]
[WhiteClock "0:00:53"]
[BlackClock "0:02:41"]
[Board "118"]

1. e4 {[%clk 0:02:59]}  Nf6 {[%clk 0:03:00]} 2. e5 {[%clk 0:02:57]}  Nd5 {[%clk 0:03:00]} 3. d4 {[%clk 0:02:56]}  d6 {[%clk 0:03:01]} 4. c4 {[%clk 0:02:56]}  Nb6 {[%clk 0:03:01]} 5. f4 {[%clk 0:02:56]}  dxe5 {[%clk 0:03:02]} 6. fxe5 {[%clk 0:02:56]}  Bf5 {[%clk 0:03:02]} 7. Nc3 {[%clk 0:02:55]}  e6 {[%clk 0:03:02]} 8. Be3 {[%clk 0:02:53]}  Bb4 {[%clk 0:03:02]} 9. Nf3 {[%clk 0:02:49]}  c5 {[%clk 0:03:01]} 10. dxc5 {[%clk 0:02:10]}  Qxd1+ {[%clk 0:02:59]} 11. Rxd1 {[%clk 0:01:54]}  Na4 {[%clk 0:02:55]} 12. Bd3 {[%clk 0:01:40]}  Nxb2 {[%clk 0:02:54]} 13. Bxf5 {[%clk 0:01:25]}  Bxc3+ {[%clk 0:02:52]} 14. Bd2 {[%clk 0:01:18]}  Nxd1 {[%clk 0:02:51]} 15. Bxc3 {[%clk 0:01:10]}  Nxc3 {[%clk 0:02:48]} 16. Bc2 {[%clk 0:01:10]}  Nc6 {[%clk 0:02:46]} 17. Kd2 {[%clk 0:01:06]}  Nxa2 {[%clk 0:02:45]} 18. Ba4 {[%clk 0:01:05]}  O-O-O+ {[%clk 0:02:41]} 19. Ke2 {[%clk 0:00:53]}  Nc3+ {[%clk 0:02:41]} 0-1


[Site "https://www.chess.com"]

[Event "Titled Tuesday Blitz August 1 Early 2023"]
[White "Romero Arzuaga, Yudel"]
[Black "Chor, Kevin"]
[WhiteFideId "3521010"]
[BlackFideId "2090740"]
[WhiteElo "2360"]
[BlackElo "2527"]
[Result "0-1"]
[Round "9"]
[TimeControl "180+1"]
[Date "2023.08.01"]
[WhiteClock "0:00:39"]
[BlackClock "0:00:44"]
[Board "120"]

1. d4 {[%clk 0:03:00]}  Nf6 {[%clk 0:02:54]} 2. Nf3 {[%clk 0:03:00]}  g6 {[%clk 0:02:47]} 3. c4 {[%clk 0:02:59]}  Bg7 {[%clk 0:02:47]} 4. Nc3 {[%clk 0:03:00]}  O-O {[%clk 0:02:44]} 5. e4 {[%clk 0:03:00]}  d6 {[%clk 0:02:37]} 6. Be2 {[%clk 0:03:00]}  e5 {[%clk 0:02:37]} 7. O-O {[%clk 0:03:00]}  Nc6 {[%clk 0:02:37]} 8. d5 {[%clk 0:03:00]}  Ne7 {[%clk 0:02:37]} 9. b4 {[%clk 0:03:00]}  Ne8 {[%clk 0:02:23]} 10. c5 {[%clk 0:02:44]}  h6 {[%clk 0:02:16]} 11. Nd2 {[%clk 0:02:37]}  f5 {[%clk 0:02:14]} 12. Nc4 {[%clk 0:02:33]}  fxe4 {[%clk 0:02:04]} 13. cxd6 {[%clk 0:02:23]}  Nxd6 {[%clk 0:02:01]} 14. Nxd6 {[%clk 0:02:22]}  cxd6 {[%clk 0:01:59]} 15. Nxe4 {[%clk 0:02:22]}  Nf5 {[%clk 0:01:59]} 16. Bb2 {[%clk 0:02:14]}  Nd4 {[%clk 0:01:59]} 17. Bxd4 {[%clk 0:02:11]}  exd4 {[%clk 0:02:00]} 18. Bg4 {[%clk 0:02:09]}  Bf5 {[%clk 0:01:59]} 19. Bxf5 {[%clk 0:02:05]}  gxf5 {[%clk 0:02:00]} 20. Ng3 {[%clk 0:02:04]}  Qg5 {[%clk 0:01:52]} 21. f4 {[%clk 0:01:51]}  Qg6 {[%clk 0:01:51]} 22. Qd3 {[%clk 0:01:46]}  Rae8 {[%clk 0:01:45]} 23. Rae1 {[%clk 0:01:45]}  Rc8 {[%clk 0:01:38]} 24. Re6 {[%clk 0:01:41]}  Qf7 {[%clk 0:01:37]} 25. Rfe1 {[%clk 0:01:36]}  Rc3 {[%clk 0:01:34]} 26. Qd1 {[%clk 0:01:11]}  d3 {[%clk 0:01:18]} 27. Nh5 {[%clk 0:01:01]}  d2 {[%clk 0:01:04]} 28. Rf1 {[%clk 0:00:44]}  Bd4+ {[%clk 0:00:48]} 29. Kh1 {[%clk 0:00:44]}  Rc1 {[%clk 0:00:48]} 30. Qf3 {[%clk 0:00:42]}  Rxf1+ {[%clk 0:00:43]} 31. Qxf1 {[%clk 0:00:39]}  Qxh5 {[%clk 0:00:44]} 0-1


[Site "https://www.chess.com"]